lending/lending_fUSD_20250924
["ID","MTS","AMOUNT","RATE_DAILY","PERIOD"]
[387276009,1758672643405,-400.0,0.00024657,3]
[387276011,1758672643415,-974.16,0.00024657,3]
[387276013,1758672643426,-489.00248034,0.00024657,3]
[387276015,1758672643437,-400.0,0.00024657,3]
[387276017,1758672643448,-2147.4,0.00024657,3]
[387276019,1758672643458,-1293.09,0.00024657,3]
[387276021,1758672643468,-469.29,0.00024657,3]
[387276023,1758672643479,-506.67,0.00024657,3]
[387276025,1758672643490,-504.01,0.00024657,3]
[387276027,1758672643500,-2163.09,0.00024657,3]
[387276029,1758672643510,-373.12540971,0.00024657,3]
[387276032,1758672643520,-400.0,0.00024657,3]
[387276034,1758672643530,-2569.87,0.00024657,3]
[387276036,1758672643540,-400.0,0.00024657,3]
[387276038,1758672643550,-400.0,0.00024657,3]
[387276040,1758672643560,-619.21,0.00024657,3]
[387276042,1758672643570,-400.0,0.00024657,3]
[387276044,1758672643581,-400.0,0.00024657,3]
[387276046,1758672643591,-1972.66,0.00024657,3]
[387276048,1758672643601,-1928.717,0.00024657,7]
[387276050,1758672643611,-1695.19,0.00024657,3]
[387276052,1758672643621,-414.69,0.00024657,3]
[387276054,1758672643631,-1910.67,0.00024657,3]
[387276056,1758672643641,-637.72,0.00024657,3]
[387276058,1758672643651,-416.29,0.00024657,3]
[387276060,1758672643661,-1673.08,0.00024657,3]
[387276062,1758672643672,-400.0,0.00024657,3]
[387276064,1758672643682,-400.0,0.00024657,3]
[387276066,1758672643691,-1788.94,0.00024657,3]
[387276068,1758672643702,-716.15,0.00024657,3]
[387276070,1758672643711,-981.6,0.00024657,3]
[387276072,1758672643721,-400.0,0.00024657,3]
[387276074,1758672643731,-1397.17,0.00024657,3]
[387276076,1758672643741,-902.2,0.00024657,3]
[387276078,1758672643751,-556.46,0.00024657,3]
[387276080,1758672643761,-781.75,0.00024657,3]
[387276082,1758672643772,-1775.68,0.00024657,3]
[387276084,1758672643782,-400.0,0.00024657,3]
[387276086,1758672643793,-438.15,0.00024657,3]
[387276088,1758672643803,-400.0,0.00024657,3]
[387276090,1758672643813,-921.68,0.00024657,3]
[387276092,1758672643823,-400.0,0.00024657,3]
[387276093,1758672643834,-1440.67,0.00024657,3]
[387276094,1758672643845,-1642.8,0.00024657,3]
[387276095,1758672643855,-1959.67,0.00024657,3]
[387276096,1758672643865,-1344.25,0.00024657,3]
[387276098,1758672643876,-400.0,0.00024657,3]
[387276100,1758672643887,-400.0,0.00024657,3]
[387276102,1758672643897,-2014.05,0.00024657,3]
[387276104,1758672643908,-400.0,0.00024657,3]
[387276106,1758672643918,-727.94,0.00024657,3]
[387276109,1758672643930,-400.0,0.00024657,3]
[387276111,1758672643940,-2159.26,0.00024657,3]
[387276113,1758672643950,-693.54,0.00024657,3]
[387276115,1758672643960,-400.0,0.00024657,3]
[387276117,1758672643970,-762.0,0.00024657,3]
[387276119,1758672643981,-1478.63,0.00024657,3]
[387276121,1758672643991,-400.0,0.00024657,3]
[387276123,1758672644002,-400.95,0.00024657,3]
[387276125,1758672644016,-400.0,0.00024657,3]
[387276127,1758672644026,-501.18,0.00024657,3]
[387276129,1758672644036,-1741.62,0.00024657,3]
[387276131,1758672644047,-719.52,0.00024657,3]
[387276133,1758672644059,-400.0,0.00024657,3]
[387276135,1758672644069,-1173.88,0.00024657,3]
[387276137,1758672644080,-2192.39,0.00024657,3]
[387276139,1758672644093,-400.0,0.00024657,3]
[387276141,1758672644103,-1168.63,0.00024657,3]
[387276143,1758672644113,-465.03,0.00024657,3]
[387276145,1758672644124,-415.54,0.00024657,3]
[387276147,1758672644133,-1298.29,0.00024657,3]
[387276149,1758672644144,-410.64575409,0.00024657,3]
[387276151,1758672644154,-1103.19,0.00024657,3]
[387276153,1758672644164,-676.56,0.00024657,3]
[387276155,1758672644174,-987.75,0.00024657,3]
[387276157,1758672644184,-1746.0,0.00024657,3]
[387276159,1758672644194,-2178.12,0.00024657,3]
[387276161,1758672644204,-782.09,0.00024657,3]
[387276164,1758672644214,-849.3,0.00024657,3]
[387276166,1758672644224,-400.0,0.00024657,3]
[387276168,1758672644234,-2066.96,0.00024657,3]
[387276170,1758672644244,-400.0,0.00024657,3]
[387276172,1758672644254,-682.17,0.00024657,3]
[387276174,1758672644265,-154.03176697,0.00024657,3]
[387276176,1758672644275,-400.0,0.00024657,3]
[387276178,1758672644285,-1215.77,0.00024657,3]
[387276180,1758672644295,-400.0,0.00024657,3]
[387276182,1758672644306,-400.0,0.00024657,3]
[387276184,1758672644315,-1799.11,0.00024657,3]
[387276186,1758672644326,-693.51,0.00024657,3]
[387276188,1758672644336,-499.81,0.00024657,3]
[387276190,1758672644346,-631.07,0.00024657,3]
[387276192,1758672644356,-400.0,0.00024657,3]
[387276194,1758672644366,-2201.2,0.00024657,3]
[387276196,1758672644376,-400.0,0.00024657,3]
[387276198,1758672644386,-1210.23,0.00024657,3]
[387276200,1758672644396,-400.0,0.00024657,3]
[387276202,1758672644406,-2008.5,0.00024657,3]
[387276204,1758672644417,-400.0,0.00024657,3]
[387276206,1758672644427,-591.56,0.00024657,3]
[387276208,1758672644439,-400.0,0.00024657,3]
[387276210,1758672644449,-802.35,0.00024657,3]
[387276212,1758672644459,-400.0,0.00024657,3]
[387276214,1758672644470,-1643.23,0.00024657,3]
[387276216,1758672644480,-400.0,0.00024657,3]
[387276218,1758672644490,-2033.93,0.00024657,3]
[387276220,1758672644500,-557.78,0.00024657,3]
[387276222,1758672644510,-452.58,0.00024657,3]
[387276224,1758672644519,-409.93,0.00024657,3]
[387276226,1758672644530,-859.59,0.00024657,3]
[387276228,1758672644540,-400.0,0.00024657,3]
[387276230,1758672644549,-1444.85,0.00024657,3]
[387276232,1758672644560,-400.0,0.00024657,3]
[387276235,1758672644569,-448.37,0.00024657,3]
[387276237,1758672644580,-400.0,0.00024657,3]
[387276239,1758672644590,-400.0,0.00024657,3]
[387276241,1758672644600,-400.0,0.00024657,3]
[387276243,1758672644610,-400.0,0.00024657,3]
[387276245,1758672644619,-618.45,0.00024657,3]
[387276247,1758672644629,-1477.71,0.00024657,3]
[387276249,1758672644639,-719.06,0.00024657,3]
[387276251,1758672644648,-400.0,0.00024657,3]
[387276253,1758672644658,-400.0,0.00024657,3]
[387276255,1758672644668,-1851.02,0.00024657,3]
[387276257,1758672644678,-409.98173983,0.00024657,3]
[387276259,1758672644688,-2092.21,0.00024657,3]
[387276261,1758672644697,-293.25641626,0.00024657,3]
[387276263,1758672644708,-1191.35,0.00024657,3]
[387276265,1758672644718,-1121.38,0.00024657,3]
[387276266,1758672644728,-757.86,0.00024657,3]
[387276267,1758672644738,-400.0,0.00024657,3]
[387276268,1758672644748,-400.0,0.00024657,3]
[387276269,1758672644758,-634.94,0.00024657,3]
[387276270,1758672644767,-445.27,0.00024657,3]
[387276271,1758672644777,-483.41,0.00024657,3]
[387276272,1758672644787,-5694.31,0.00024657,3]
[387276273,1758672644797,-400.0,0.00024657,3]
[387276274,1758672644808,-400.0,0.00024657,3]
[387276275,1758672644819,-1576.34,0.00024657,3]
[387276277,1758672644829,-1014.84,0.00024657,3]
[387276279,1758672644841,-880.9,0.00024657,3]
[387276281,1758672644852,-400.0,0.00024657,3]
[387276283,1758672644862,-548.8,0.00024657,3]
[387276285,1758672644872,-510.77,0.00024657,3]
[387276287,1758672644882,-400.0,0.00024657,3]
[387276289,1758672644892,-677.37,0.00024657,3]
[387276291,1758672644903,-484.63,0.00024657,3]
[387276293,1758672644913,-400.0,0.00024657,3]
[387276295,1758672644923,-681.58,0.00024657,3]
[387276297,1758672644933,-400.0,0.00024657,3]
[387276299,1758672644943,-712.65,0.00024657,3]
[387276301,1758672644953,-400.0,0.00024657,3]
[387276303,1758672644963,-930.67,0.00024657,3]
[387276305,1758672644974,-1287.58,0.00024657,3]
[387276307,1758672644983,-400.0,0.00024657,3]
[387276310,1758672644993,-549.57,0.00024657,3]
[387276312,1758672645006,-930.01,0.00024657,3]
[387276314,1758672645018,-1909.68,0.00024657,3]
[387276316,1758672645027,-400.0,0.00024657,3]
[387276318,1758672645036,-570.77,0.00024657,3]
[387276320,1758672645047,-400.0,0.00024657,3]
[387276322,1758672645056,-400.0,0.00024657,3]
[387276324,1758672645066,-796.78,0.00024657,3]
[387276326,1758672645076,-642.75,0.00024657,3]
[387276328,1758672645089,-400.0,0.00024657,3]
[387276330,1758672645099,-2549.57,0.00024657,3]
[387276332,1758672645108,-754.82,0.00024657,3]
[387276334,1758672645118,-1403.23,0.00024657,3]
[387276336,1758672645128,-432.33,0.00024657,3]
[387276338,1758672645137,-1158.89,0.00024657,3]
[387276340,1758672645147,-1423.81,0.00024657,3]
[387276342,1758672645156,-838.23,0.00024657,3]
[387276344,1758672645167,-707.02,0.00024657,3]
[387276346,1758672645176,-229.20636012,0.00024657,3]
[387276348,1758672645186,-1847.07,0.00024657,3]
[387276350,1758672645196,-1914.13,0.00024657,3]
[387276352,1758672645206,-400.0,0.00024657,3]
[387276354,1758672645215,-400.0,0.00024657,3]
[387276356,1758672645225,-904.6,0.00024657,3]
[387276358,1758672645235,-1920.36,0.00024657,3]
[387276360,1758672645245,-400.0,0.00024657,3]
[387276362,1758672645255,-2021.01,0.00024657,3]
[387276364,1758672645264,-400.0,0.00024657,3]
[387276366,1758672645275,-1787.77,0.00024657,3]
[387276368,1758672645284,-1461.65,0.00024657,3]
[387276371,1758672645294,-400.0,0.00024657,3]
[387276373,1758672645304,-1526.55,0.00024657,3]
[387276375,1758672645314,-400.0,0.00024657,3]
[387276377,1758672645326,-1711.2,0.00024657,3]
[387276379,1758672645336,-400.0,0.00024657,3]
[387276381,1758672645347,-400.0,0.00024657,3]
[387276383,1758672645356,-400.0,0.00024657,3]
[387276385,1758672645367,-400.0,0.00024657,3]
[387276387,1758672645377,-400.0,0.00024657,3]
[387276389,1758672645387,-1196.28,0.00024657,3]
[387276391,1758672645397,-474.98,0.00024657,3]
[387276393,1758672645407,-400.0,0.00024657,3]
[387276395,1758672645417,-477.44,0.00024657,3]
[387276397,1758672645428,-400.0,0.00024657,3]
[387276400,1758672645438,-400.0,0.00024657,3]
[387276404,1758672645448,-1754.24,0.00024657,3]
[387276407,1758672645458,-178.0104599,0.00024657,3]
[387276410,1758672645468,-472.19,0.00024657,3]
[387276413,1758672645479,-400.0,0.00024657,3]
[387276416,1758672645489,-400.0,0.00024657,3]
[387276419,1758672645499,-400.0,0.00024657,3]
[387276422,1758672645510,-1877.28,0.00024657,3]
[387276425,1758672645520,-518.86,0.00024657,3]
[387276429,1758672645534,-464.17,0.00024657,3]
[387276432,1758672645545,-840.75,0.00024657,3]
[387276435,1758672645555,-400.0,0.00024657,3]
[387276437,1758672645565,-1622.96,0.00024657,3]
[387276439,1758672645575,-1820.12,0.00024657,3]
[387276441,1758672645586,-409.93,0.00024657,3]
[387276443,1758672645596,-620.93,0.00024657,3]
[387276445,1758672645607,-400.0,0.00024657,3]
[387276448,1758672645618,-381.01855771,0.00024657,3]
[387276457,1758672645711,-18.98144229,0.00024657,3]
[387276459,1758672645721,-400.0,0.00024657,3]
[387276461,1758672645732,-159.53632152,0.00024657,3]
[387276499,1758672646124,-240.46367848,0.00024657,3]
[387276501,1758672646134,-392.34427193,0.00024657,3]
[387276600,1758672647206,-7.65572807,0.00024657,3]
[387276602,1758672647215,-654.81,0.00024657,3]
[387276604,1758672647225,-2101.27,0.00024657,3]
[387276606,1758672647235,-400.0,0.00024657,3]
[387276608,1758672647244,-516.51,0.00024657,3]
[387276610,1758672647254,-400.0,0.00024657,3]
[387276612,1758672647263,-1123.04,0.00024657,3]
[387276614,1758672647272,-640.02609067,0.00024657,3]
[387276616,1758672647285,-737.73390933,0.00024657,3]
[387276618,1758672647295,-270.62609067,0.00024657,3]
[387276619,1758672647306,-457.47500827,0.00024657,3]
[387276620,1758672647325,-212.92890106,0.00024657,3]
[387276621,1758672647336,-587.05,0.00024657,3]
[387276622,1758672647346,-335.76923322,0.00024657,3]
[387276659,1758672649192,-397.35025553,0.00019966,2]
[387276660,1758672649203,-500.0,0.00019966,2]
[387276661,1758672649213,-500.0,0.00019966,2]
[387276662,1758672649223,-500.0,0.00019966,2]
[387276663,1758672649232,-500.0,0.00019966,2]
[387276664,1758672649242,-500.0,0.00019966,2]
[387276665,1758672649251,-500.0,0.00019966,2]
[387276666,1758672649261,-500.0,0.00019966,2]
[387276667,1758672649270,-500.0,0.00019966,2]
[387276668,1758672649280,-500.0,0.00019966,2]
[387276669,1758672649289,-500.0,0.00019966,2]
[387276670,1758672649299,-500.0,0.00019966,2]
[387276671,1758672649308,-304.37885416,0.00019966,2]
[387276672,1758672649317,-500.0,0.00019966,2]
[387276673,1758672649327,-500.0,0.00019966,2]
[387276674,1758672649336,-500.0,0.00019966,2]
[387276675,1758672649346,-500.0,0.00019966,2]
[387276676,1758672649355,-500.0,0.00019966,2]
[387276677,1758672649365,-64.23076678,0.00024657,3]
[387276678,1758672649374,-400.0,0.00024657,3]
[387276679,1758672649383,-1704.2,0.00024657,3]
[387276680,1758672649392,-632.45,0.00024657,3]
[387276681,1758672649402,-593.24,0.00024657,3]
[387276682,1758672649411,-400.0,0.00024657,3]
[387276683,1758672649421,-400.0,0.00024657,3]
[387276684,1758672649430,-886.85,0.00024657,3]
[387276685,1758672649439,-2425.52,0.00024657,3]
[387276686,1758672649449,-1776.28,0.00024657,3]
[387276687,1758672649458,-1376.75,0.00024657,3]
[387276688,1758672649467,-400.0,0.00024657,3]
[387276689,1758672649477,-447.89,0.00024657,3]
[387276690,1758672649486,-773.85,0.00024657,3]
[387276691,1758672649495,-400.0,0.00024657,3]
[387276692,1758672649505,-509.9953157,0.00024657,3]
[387276693,1758672649514,-1793.44,0.00024657,3]
[387276694,1758672649524,-400.0,0.00024657,3]
[387276695,1758672649533,-400.0,0.00024657,3]
[387276696,1758672649543,-516.55,0.00024657,3]
[387276697,1758672649552,-752.77,0.00024657,3]
[387276698,1758672649562,-1670.08,0.00024657,3]
[387276699,1758672649571,-400.0,0.00024657,3]
[387276700,1758672649792,-608.92,0.00024657,3]
[387276701,1758672649803,-2551.74,0.00024657,3]
[387276702,1758672649813,-1175.11,0.00024657,3]
[387276703,1758672649826,-400.0,0.00024657,3]
[387276704,1758672649837,-400.0,0.00024657,3]
[387276705,1758672649848,-640.1,0.00024657,3]
[387276706,1758672649858,-752.03,0.00024657,3]
[387276707,1758672649867,-459.97,0.00024657,3]
[387276708,1758672649876,-2495.52,0.00024657,3]
[387276709,1758672649886,-400.0,0.00024657,3]
[387276710,1758672649896,-571.27,0.00024657,3]
[387276711,1758672649906,-342.62079191,0.00024657,3]
[387276712,1758672649916,-451.95,0.00024657,3]
[387276713,1758672649926,-400.0,0.00024657,3]
[387276714,1758672649937,-400.0,0.00024657,3]
[387276715,1758672649946,-697.06,0.00024657,3]
[387276716,1758672649956,-1119.88,0.00024657,3]
[387276717,1758672649966,-1016.75,0.00024657,3]
[387276718,1758672649975,-211.80211839,0.00024657,3]
[387276719,1758672649989,-550.18788161,0.00024657,3]
[387276720,1758672650002,-400.0,0.00024657,3]
[387276721,1758672650021,-3150.68,0.00024657,3]
[387276722,1758672650040,-400.0,0.00024657,3]
[387276723,1758672650058,-308.63195884,0.00024657,3]
[387276724,1758672650068,-400.0,0.00024657,3]
[387276725,1758672650077,-2274.62,0.00024657,3]
[387276726,1758672650087,-400.0,0.00024657,3]
[387276727,1758672650097,-420.73274543,0.00024657,3]
[387276728,1758672650106,-986.56,0.00024657,3]
[387276729,1758672650116,-400.0,0.00024657,3]
[387276730,1758672650125,-971.43,0.00024657,3]
[387276731,1758672650135,-1438.93,0.00024657,3]
[387276732,1758672650144,-400.0,0.00024657,3]
[387276733,1758672650154,-400.0,0.00024657,3]
[387276734,1758672650163,-542.12,0.00024657,3]
[387276735,1758672650174,-400.0,0.00024657,3]
[387276736,1758672650183,-400.0,0.00024657,3]
[387276737,1758672650192,-400.0,0.00024657,3]
[387276738,1758672650202,-400.0,0.00024657,3]
[387276739,1758672650211,-484.19,0.00024657,3]
[387276740,1758672650220,-547.31,0.00024657,3]
[387276741,1758672650230,-400.0,0.00024657,3]
[387276742,1758672650239,-1954.45,0.00024657,3]
[387276743,1758672650248,-410.23,0.00024657,3]
[387276744,1758672650257,-1169.87,0.00024657,3]
[387276745,1758672650266,-1101.0,0.00024657,3]
[387276746,1758672650275,-400.0,0.00024657,3]
[387276747,1758672650284,-233.69929846,0.00024657,3]
[387276748,1758672650297,-166.30070154,0.00024657,3]
[387276749,1758672650306,-1885.6,0.00024657,3]
[387276750,1758672650315,-1224.43,0.00024657,3]
[387276751,1758672650325,-1317.49,0.00024657,3]
[387276752,1758672650335,-400.0,0.00024657,3]
[387276753,1758672650344,-1966.74,0.00024657,3]
[387276754,1758672650354,-400.0,0.00024657,3]
[387276755,1758672650363,-436.12,0.00024657,3]
[387276756,1758672650372,-944.39,0.00024657,3]
[387276757,1758672650382,-1411.7,0.00024657,3]
[387276758,1758672650392,-1454.45,0.00024657,3]
[387276759,1758672650402,-533.94,0.00024657,3]
[387276760,1758672650412,-3821.95293252,0.00024657,3]
[387276761,1758672650424,-8106.30706748,0.00024657,3]
[387276762,1758672650434,-1886.82,0.00024657,3]
[387276763,1758672650443,-706.11,0.00024657,3]
[387276764,1758672650452,-696.22,0.00024657,3]
[387276765,1758672650461,-400.0,0.00024657,3]
[387276766,1758672650471,-400.0,0.00024657,3]
[387276767,1758672650481,-500.86,0.00024657,3]
[387276768,1758672650490,-1360.17513272,0.00024657,3]
[387276769,1758672650503,-546.63486728,0.00024657,3]
[387276770,1758672650512,-821.08,0.00024657,3]
[387276771,1758672650522,-935.53608277,0.00024657,3]
[387276772,1758672650539,-832.39391723,0.00024657,3]
[387276773,1758672650548,-400.0,0.00024657,3]
[387276774,1758672650559,-400.0,0.00024657,3]
[387276775,1758672650569,-2114.29,0.00024657,3]
[387276776,1758672650578,-630.3,0.00024657,3]
[387276777,1758672650588,-2240.6,0.00024657,3]
[387276778,1758672650598,-400.0,0.00024657,3]
[387276779,1758672650607,-400.0,0.00024657,3]
[387276780,1758672650616,-504.56,0.00024657,3]
[387276781,1758672650625,-400.0,0.00024657,3]
[387276782,1758672650635,-1519.93,0.00024657,3]
[387276783,1758672650644,-662.82,0.00024657,3]
[387276784,1758672650654,-693.6,0.00024657,3]
[387276785,1758672650664,-400.0,0.00024657,3]
[387276786,1758672650673,-506.85,0.00024657,3]
[387276787,1758672650682,-400.0,0.00024657,3]
[387276788,1758672650692,-539.8,0.00024657,3]
[387276789,1758672650702,-342.04721172,0.00024657,3]
[387276790,1758672650711,-400.0,0.00024657,3]
[387276791,1758672650721,-1132.87,0.00024657,3]
[387276792,1758672650730,-1533.31,0.00024657,3]
[387276793,1758672650740,-1637.96,0.00024657,3]
[387276794,1758672650751,-1345.07,0.00024657,3]
[387276795,1758672650761,-675.3,0.00024657,3]
[387276796,1758672650771,-1601.87,0.00024657,3]
[387276797,1758672650780,-400.0,0.00024657,3]
[387276798,1758672650790,-404.84,0.00024657,3]
[387276799,1758672650799,-1183.85,0.00024657,3]
[387276800,1758672650809,-400.0,0.00024657,3]
[387276801,1758672650818,-400.0,0.00024657,3]
[387276802,1758672650832,-400.0,0.00024657,3]
[387276803,1758672650842,-400.0,0.00024657,3]
[387276804,1758672650852,-814.94,0.00024657,3]
[387276805,1758672650862,-1427.55,0.00024657,3]
[387276806,1758672650872,-542.58415138,0.00024657,3]
[387276807,1758672650882,-1183.04,0.00024657,3]
[387276808,1758672650892,-400.0,0.00024657,3]
[387276809,1758672650902,-989.91,0.00024657,3]
[387276810,1758672650911,-603.56,0.00024657,3]
[387276811,1758672650920,-10765.05,0.00024657,3]
[387276812,1758672650930,-400.0,0.00024657,3]
[387276813,1758672650939,-2736.02,0.00024657,3]
[387276814,1758672650948,-605.37,0.00024657,3]
[387276815,1758672650958,-400.0,0.00024657,3]
[387276816,1758672650967,-1455.03,0.00024657,3]
[387276817,1758672650977,-400.0,0.00024657,3]
[387276818,1758672650986,-400.0,0.00024657,3]
[387276819,1758672650995,-833.15207738,0.00024657,3]
[387276820,1758672651012,-1322.73792262,0.00024657,3]
[387276821,1758672651021,-19.01763099,0.00024657,3]
[387276822,1758672651032,-1025.71236901,0.00024657,3]
[387276823,1758672651042,-52.41083101,0.00024657,3]
[387276824,1758672696960,277.4,0.00011852,2]
[387276825,1758672697165,277.4,0.00012476,2]
[387276826,1758672697376,277.4,0.00013099,2]
[387276827,1758672697805,277.4,0.00013723,2]
[387276828,1758672698024,277.4,0.00014347,2]
[387276829,1758672698225,277.4,0.00014971,2]
[387276830,1758672698438,277.4,0.00015595,2]
[387276831,1758672698652,277.4,0.00016218,2]
[387276832,1758672698860,277.4,0.00016842,2]
[387276833,1758672699273,277.4,0.00017466,2]
[387276834,1758672699484,277.4,0.0001809,2]
[387276836,1758673201048,248.47,0.00018578,2]
[387276837,1758673279334,-277.87187439,0.00018667,2]
[387276838,1758673281569,-179.14290915,0.00018667,2]
[387276839,1758673285562,-163.37139681,0.00018667,2]
[387276840,1758673289264,-288.54812668,0.00018667,2]
[387276841,1758673292770,-153.10796383,0.00018667,2]
[387276842,1758673295883,-35.56163829,0.00018667,2]
[387276843,1758673295912,-269.03701407,0.00018713,2]
[387276844,1758673297431,-8.36298593,0.00018713,2]
[387276845,1758673297461,-195.0,0.00018767,2]
[387276846,1758673297492,-55.3459844,0.00018821,2]
[387276847,1758673299374,-107.7140156,0.00018821,2]
[387276848,1758673464244,150.0,0.00023,30]
[387276850,1758673533179,250.0,0.00015,2]
[387276851,1758673533975,300.0,0.00017,2]
[387276852,1758673631586,-252.36867133,0.00019144,2]
[387276853,1758673635274,-118.83219567,0.00019144,2]
[387276854,1758673643450,190.9,0.00010978,2]
[387276855,1758673643644,190.9,0.00011555,2]
[387276856,1758673643854,190.9,0.00012133,2]
[387276857,1758673644056,190.9,0.00012711,2]
[387276858,1758673644550,190.9,0.00013289,2]
[387276859,1758673644768,190.9,0.00013867,2]
[387276860,1758673644989,190.9,0.00014444,2]
[387276861,1758673645230,190.9,0.00015022,2]
[387276862,1758673645433,190.9,0.000156,2]
[387276863,1758673645590,190.9,0.00016178,2]
[387276864,1758673645807,190.9,0.00016755,2]
[387276865,1758673646122,190.9,0.00017333,2]
[387276866,1758673646743,190.9,0.00017911,2]
[387276867,1758673646838,190.9,0.00018489,2]
[387276894,1758673831734,-190.9,0.00019067,2]
[387276896,1758673831745,-277.4,0.00019337,2]
[387276898,1758673831756,-190.9,0.00019644,2]
[387276899,1758673831768,-500.0,0.0001989,2]
[387276900,1758673831780,-42.71361871,0.0001989,2]
[387276901,1758673831801,-257.28638129,0.0001989,2]
[387276902,1758673831812,-1200.0,0.0001989,2]
[387276903,1758673831823,-850.0,0.0001989,2]
[387276904,1758673831839,-8524.7402,0.000199,2]
[387276905,1758673831850,-1000.0,0.000199,2]
[387276906,1758673831860,-198.5017,0.000199,2]
[387276907,1758673831870,-2500.0,0.000199,2]
[387276908,1758673831880,-671.53254306,0.000199,2]
[387276909,1758673831891,-277.4,0.00019961,2]
[387276910,1758673831903,-372.96,0.0001999,2]
[387276911,1758673831914,-372.96,0.0001999,2]
[387276912,1758673831925,-151.0,0.00019997,2]
[387276913,1758673831935,-1520.20335628,0.00019999,2]
[387276914,1758673831946,-150.3590218,0.00019999,2]
[387276915,1758673831957,-593.3320695,0.00019999,2]
[387276916,1758673831967,-44791.88046821,0.0002,2]
[387276917,1758673832001,-4884.04011984,0.0002,2]
[387276945,1758673832361,-525.74328535,0.0002,2]
[387276949,1758673832374,-578.1981307,0.0002,2]
[387276958,1758673832451,-493.61014242,0.0002,2]
[387276961,1758673832463,-21732.23147701,0.0002,2]
[387276967,1758673832514,-4498.31984365,0.0002,2]
[387276976,1758673832591,-500.0,0.0001989,2]
[387276978,1758673832602,-287.59245976,0.0001989,2]
[387276979,1758673832611,-500.0,0.0001989,2]
[387276980,1758673832620,-2673.72935881,0.0002,2]
[387276981,1758673832658,-500.0,0.0001989,2]
[387276982,1758673832668,-605.20414623,0.0002,2]
[387277554,1758673838638,-500.0,0.0001989,2]
[387277556,1758673838651,-500.0,0.0001989,2]
[387277558,1758673838663,-500.0,0.0001989,2]
[387277561,1758673838676,-500.0,0.0001989,2]
[387277563,1758673838688,-500.0,0.0001989,2]
[387277565,1758673838703,-500.0,0.0001989,2]
[387277567,1758673838716,-500.0,0.0001989,2]
[387277569,1758673838728,-500.0,0.0001989,2]
[387277571,1758673838740,-500.0,0.0001989,2]
[387277574,1758673838753,-500.0,0.0001989,2]
[387277576,1758673838765,-500.0,0.0001989,2]
[387277578,1758673838778,-500.0,0.0001989,2]
[387277580,1758673838793,-500.0,0.0001989,2]
[387277582,1758673838805,-500.0,0.0001989,2]
[387277584,1758673838818,-500.0,0.0001989,2]
[387277586,1758673838831,-500.0,0.0001989,2]
[387277588,1758673838843,-370.18939612,0.0001989,2]
[387277590,1758673838857,-500.0,0.0001989,2]
[387277593,1758673838870,-500.0,0.0001989,2]
[387277595,1758673838884,-500.0,0.0001989,2]
[387277598,1758673838897,-500.0,0.0001989,2]
[387277600,1758673838911,-1072.14839257,0.0001989,2]
[387277602,1758673838924,-448845.91816381,0.0002,2]
[387277605,1758673838937,-500.0,0.0002,2]